Workbook

Sheet Abk
A1: Date | B1: Grp | C1: Rub | D1: DE | E1: Ex | F1: N°
A2: C0503 M2107 | B2: ABK My $$$ | C2: /THÈMES DICO GROUPES | D2: +++ (Important, NB: se met à la fin), 3DPRINT, ABC (Relatif à l'alphabet, test de lettrage), ABK (Abkürzungen), ACRY (Acronyme), ActiveX, AÉRO (Avion), ALIM, ANAT, Android, ANIM, APK, ARGENT (Argentique), ASP, ASTRO (Astronautique / Espace), AtP (ATeliers Perspectives remplacé par HS), AUDIO, AUTO, BIBLE, BIO, BOAT, CALC (Calculateurs), CdlA (C’est dans l’air), CEC (Câbles Et Connecteurs), CHIM, CINÉMA, CLIENT, COMM (Commercial), Commentaires, CONT (Contrat Contractuel), CPT (ComPuTer), CPT-Interface (Relatif aux interface informatique), CPU, CULI (ne plus utiliser, remplacé par ALIM), D- (Deutsch Allemand), DB (DateBase), DISASTER (Désastres), Desktop, DICO (et non plus F-), DOS, E- (english), ÉCOL (Écologie), ÉCON (Économie), ÉCOPOL (Économie Politique), ÉDUC (Éducation), ÉLEC (Électricité), ÉNERG, ÉTYM (Relatif à l'étymologie), Excel, FAMILLE, FFILE (Format de File), FINAN, FIT (Fitness, santé, médecine), France, GAME (Jeux pour enfants), GB (G.Brit), GDP (Gestion de projet), GÉOG, GÉOM, HDW (Hardware, matériel informatique ou électronique), HDD (Relatif aux disques durs informatiques), HIST, HS (HorizonSud), HTML+, HTML_ValidationChampForm, Humour, I- (Italien Italie), Inet+, IOS, Islam, Java, Journal, JUR (Juridique), KUNST (Art), LDC (Ligne De Commande), LING (Linguistique), Linux, LIVRE, supprimé LOCU (Locution, tournure de phrase) ->PROV, LPRG (Langage de PRoGrammation) abandonné, MacOS, MÉDIA, MÉDIC, MEM (Relatif à la mémoire informatique), MÉTÉO, MFP (Mouvement et Forme de Pensée), MIL, MINÉ, Musée, MUSI, My, NB, PAO, PHILO, PHOTO, PHYS, POLIT, PREHIST, PRINT (Relatif à l'imprimerie (÷TYPO; LIVRE)), PROCOM (Protocole de communication), PROF, PROV, PSY, REL, RELIU (Reliure), ROBOT, RS (Réseaux), RS-TLT (RS Types de liaison et de transmission physique), Russie, SALU (Salutation), SGL (SiGLe), Société (Nom d'une _, institut, organisation, association), SPAC (dans l'espace, diff. de ASTRO), SPh (Smartphone), SPORT, STAR (artiste, personalité, people), STAT, STW, Suisse, SW (Smart Watch et Watch), Tamara, TCOM (Télécomm), TECH, TRANSPORT, TRUC (Truc et Astuce/Optimisation/Personnalisation de Windows), TV, TYPO (Typographie et arts graphiques, Typography and graphic art, Relatif à la typographie et au prépresse (÷PRINT; LIVRE)), Tx, UMPC Ultra-Mobile PC, USA, VBA+, VAE (Vélo à Assistance Électrique), VÉGÉ, VIDÉO, VOYAGE, VRAR (Virtual Reality, Augmented Reality), W2k, W7 (Windows 7 Seven), W8, W95, W98, W9x, W10, W11, Watch (annulé voir SW), Wme, W-NT, Word, WXP, WV (Vista), WW1, WW2 (1ère et Seconde guerre), XLG XLGM, YT (youtube) | F2: 7291
A3: C9912 M0806 | B3: ABK | C3: /Theq | D3: DVD DVR MD CD LI JX BD=BandesDessinées PU=Pub ME=ModeEmploi CR=CD-R CW=CD-RW WH=WindowsHelp (file d'aide dans W) F_=File >Reste >En cours >Mono | F3: 7431
B4: ABK | C4: - ; _ | D4: préfixe/suffixe sous entendu | F4: 7439
B5: ABK | C5: />PannConf >OutAdm >ong >bou | D5: Dans Windows, décrit les menus suivants: Panneau de configuration >Outils adm Onglet Bouton N'est plus utilisé, >> o/ b/ etc. | F5: 7432
A6: C9912 M0806 | B6: ABK | C6: />Q 2/>> >TV >CpS >Wiki | D6: Lien à Q+N° (Sources) 2/Autres liens | F6: 7464
A7: C0508 M2109 | B7: ABK $$$ | C7: /Abréviations | D7: ! = montre un élément qui manque ou qu'on ne traduit pas $$$ = Indique que se trouve une question en suspens. Remplacé par Q- >> = renvoie à, voir (à) (et non plus ->) _BO = Best of CA = Chiffre d'affaires CdF = La Chaux-de-Fonds CdlA = C'est dans l'Air CpS = C'est pas Sorcier Fri = Fribourg gd = grand grp = groupe Jpn = Japon, japonais, Japonais Ka BP = milliers d'années Before Present Lsne = Lausanne nb = nombreux ns / vs = nous / vous PSol = Panneau(x) solaire(s) Q- = question(s) en suspens (posée au cours du texte) qq, qn,qc, qd = quelques -uns -chose, quand VsG = Villars-sur-Glâne
B8: ABK | C8: @ | D8: adverbe | F8: 7441
B9: ABK | C9: '+A +D +G | D9: +accusatif, datif ou génitif | F9: 7362
B10: ABK | C10: ÷ | D10: divisé, n'est pas égal/différent de | F10: 7350
B11: ABK | C11: A | D11: accusatif | F11: 7442
B12: ABK | C12: a (ou selon contexte:) adj | D12: adjectif | F12: 7443
A13: C1905 | B13: ABK | C13: a.l. | D13: Années lumière
B14: NON ABK | C14: A+ | D14: Alléluia | F14: 7230
B15: ABK | C15: ANT | D15: antonyme | F15: 7235
B16: ABK | C16: art. | D16: article | F16: 7236
B17: ABK | C17: auxl | D17: auxiliaire | F17: 7237
B18: NON ABK | C18: B+ | D18: Bible | F18: 7238
A19: C0004 | B19: ABK | C19: bg-Background bt-Bouton fg-Flag lg- Logo pt-Pictograme sy-Symbole ic-Icône | D19: Uniquement valable pour les files. Il n'y a PAS ic-Icône | F19: 7560
B20: NON ABK | C20: C+ | D20: Christ | F20: 7351
B21: ABK | C21: c-à-d ou càd | D21: c'est-à-dire | F21: 7357
B22: ABK | C22: cath | D22: catholique | F22: 7239
B23: ABK | C23: cb | D23: combien | F23: 7356
B24: ABK | C24: cjc | D24: conj. de coordination | F24: 7241
B25: ABK | C25: cjs | D25: conj. de subordination | F25: 7242
B26: ABK | C26: COD | D26: complément d'objet direct | F26: 7243
B27: ABK | C27: COI | D27: complément d'objet indirect | F27: 7244
B28: ABK | C28: Cpl | D28: complément | F28: 7245
B29: ABK | C29: D | D29: datif | F29: 7246
B30: ABK | C30: D- | D30: allemand | F30: 7248
B31: NON ABK | C31: D+ | D31: Dieu | F31: 7247
B32: ABK | C32: d16e ; m ; f | D32: début/milieu/fin (+ chiffre) du Xe siècle | F32: 7249
B33: ABK | C33: ddé | D33: de(s) données | F33: 600
B34: ABK | C34: dét | D34: déterminant | F34: 7250
B35: ABK | C35: Device | D35: Périphérique | F35: 7383
A36: C0209 | B36: NON ABK | C36: DIAL | D36: Dialecte Suisse-alémanique
B37: ABK | C37: diff. | D37: différent(e,s),a | F37: 7251
B38: ABK | C38: dir | D38: directif | F38: 7252
B39: ABK | C39: dsdé | D39: des données | F39: 7387
A40: C0205 | B40: ABK FFILE | C40: DVX | D40: DivX
B41: ABK | C41: E- | D41: anglais (général) | F41: 7254
B42: NON ABK | C42: E+ | D42: Esprit | F42: 7253
B43: ABK | C43: env. | D43: environ | F43: 7255
B44: ABK | C44: etw | D44: etwas | F44: 7256
B45: ABK | C45: év. | D45: évangélique / éventuellement | F45: 7258
B46: ABK | C46: ex. | D46: exemple | F46: 7259
B47: ABK | C47: exc | D47: exception(nellemt) | F47: 7260
B48: ABK | C48: f | D48: féminin | F48: 7261
B49: ABK | C49: F- | D49: France; français | F49: 7262
B50: ABK | C50: f. | D50: faire | F50: 7263
B51: ABK | C51: fam | D51: familier | F51: 7264
B52: ABK | C52: fct | D52: fonction | F52: 7265
B53: ABK | C53: fig | D53: figuré | F53: 7267
B54: ABK | C54: flle(s) | D54: feuille(s) | F54: 7415
B55: ABK | C55: FO | D55: Fibre optique | F55: 7379
B56: ABK | C56: Ft | D56: futur | F56: 7268
B57: ABK | C57: g | D57: genre | F57: 7269
B58: ABK | C58: G | D58: génitif | F58: 7270
B59: ABK | C59: GB | D59: Angleterre; anglais Britanique | F59: 7271
B60: ABK | C60: gd | D60: grand | F60: 7272
B61: ABK | C61: GN | D61: groupe nominal | F61: 7273
A62: C0011 | B62: ABK GRP | C62: GRP | D62: Groupe. Fait partie d'un groupe dans le champ "Groupe" | F62: 7359
B63: ABK | C63: GV | D63: groupe verbal | F63: 7274
B64: ABK | C64: h | D64: hat / have / homme | F64: 7275
B65: NON ABK | C65: H - F - D - G - I - J | D65: Pour l'entête des MDs: Homme Femme Duo Groupe Instrumental Jazz | F65: 7449
B66: ABK | C66: HDD | D66: disque(s) dur(s) | F66: 7371
A67: C0011 | B67: ABK GRP HTML-Tableau | C67: HTML_Script | F67: 8021
A68: C0011 | B68: ABK GRP HTML-TabularDataControl | C68: HTML_Tableau | F68: 8022
A69: C0011 | B69: ABK GRP HTML-ValidationChampForm | C69: HTML_TabularDataControl | F69: 8023
A70: C0011 | B70: ABK GRP HTML-ActiveX | C70: HTML-ActiveX | F70: 7992
A71: C0011 | B71: ABK GRP HTML-ASP | C71: HTML-ASP | F71: 7993
A72: C0011 | B72: ABK GRP HTML-Bannière | C72: HTML-Bannière | F72: 7994
A73: C0011 | B73: ABK GRP HTML-CdesDiv | C73: HTML-CdesDiv | F73: 7995
A74: C0011 | B74: ABK GRP HTML-CdesGénérales | C74: HTML-CdesGénérales | F74: 7991
A75: C0011 | B75: ABK GRP HTML-Cellule | C75: HTML-Cellule | F75: 7997
A76: C0011 | B76: ABK GRP HTML-CGI | C76: HTML-CGI | F76: 7998
A77: C0011 | B77: ABK GRP HTML-CSS | C77: HTML-CSS | F77: 7999
A78: C0011 | B78: ABK GRP HTML-Form | C78: HTML-Form | F78: 8000
A79: C0011 | B79: ABK GRP HTML-FormBase | C79: HTML-FormBase | F79: 8001
A80: C0011 | B80: ABK GRP HTML-FormBouton | C80: HTML-FormBouton | F80: 8002
A81: C0011 | B81: ABK GRP HTML-FormBouton CdeReset | C81: HTML-FormBouton CdeReset | F81: 8004
A82: C0011 | B82: ABK GRP HTML-FormBoutonCdeButton | C82: HTML-FormBoutonCdeButton | F82: 8003
A83: C0011 | B83: ABK GRP HTML-FormBoutonCdeSubmit | C83: HTML-FormBoutonCdeSubmit | F83: 8005
A84: C0011 | B84: ABK GRP HTML-FormBoutonRadio | C84: HTML-FormBoutonRadio | F84: 8006
A85: C0011 | B85: ABK GRP HTML-FormCaseAcocher | C85: HTML-FormCaseAcocher | F85: 8007
A86: C0011 | B86: ABK GRP HTML-FormMenuDéroulant | C86: HTML-FormMenuDéroulant | F86: 8008
A87: C0011 | B87: ABK GRP HTML-FormZoneTexte | C87: HTML-FormZoneTexte | F87: 8009
A88: C0011 | B88: ABK GRP HTML-FormZoneTxtDéroulante | C88: HTML-FormZoneTxtDéroulante | F88: 8010
A89: C0011 | B89: ABK GRP HTML-FormZoneTxtSimple | C89: HTML-FormZoneTxtSimple | F89: 8011
A90: C0011 | B90: ABK GRP HTML-Frameset | C90: HTML-Frame | F90: 8013
A91: C0011 | B91: ABK GRP HTML-ImageInteractive | C91: HTML-Frameset | F91: 8014
A92: C0011 | B92: ABK GRP HTML-Image | C92: HTML-Image | F92: 7996
A93: C0011 | B93: ABK GRP HTML-Liens | C93: HTML-ImageInteractive | F93: 8015
A94: C0011 | B94: ABK GRP HTML-Ligne | C94: HTML-Liens | F94: 8016
A95: C0011 | B95: ABK GRP HTML-Listes | C95: HTML-Ligne | F95: 8017
A96: C0011 | B96: ABK GRP HTML-Paragraphe | C96: HTML-Listes | F96: 8018
A97: C0011 | B97: ABK GRP HTML-Police | C97: HTML-Paragraphe | F97: 8019
A98: C0011 | B98: ABK GRP HTML-Script | C98: HTML-Police | F98: 8020
B99: ABK | C99: I | D99: infinitif | F99: 7276
B100: ABK | C100: i ; intr | D100: intransitif | F100: 7277
B101: ABK | C101: Inet | D101: Internet | F101: 7372
B102: ABK | C102: interj | D102: interjection, exclamation >>Lexique FR- | F102: 7279
A103: C1512 M1607 | B103: ABK Inet | C103: IoT (Internet of Things) des objets | D103: N'est pas une technologie mais un système des systèmes. "3e Révolution inet" Ajout d'une puce connectée (RFID ou Wi-Fi) Informations sur état et emplacement d'un dispositif (ex: des taxis libres ou occupés dans une ville, informe d'une panne et sa source) Offre surtout de nb opportunités marketing… Génère une qté massive de données Lu que "les dispositifs _ produisent bcp de données et que l'envoi de ces données vers le Cloud ne permet pas forcément de faire des économies... Le traitement par le Cloud exige bcp de bande passante et crée de la latence en fonction du type de connexion..."
B104: ABK | C104: j | D104: jour | F104: 7280
B105: NON ABK | C105: J+ | D105: Jésus | F105: 7281
B106: ABK | C106: jdm ; jdn ; jds | D106: jemand- +D +A +G | F106: 7282
B107: ABK | C107: kausal | D107: causalité | F107: 7363
B108: ABK | C108: Lat | D108: Latin | F108: 7283
B109: ABK | C109: lg | D109: long,a | F109: 7284
B110: ABK | C110: lgt | D110: longtemps,@ | F110: 7285
B111: ABK GRP LING | C111: LING - Linguistique | D111: Linguistics ['liñgwistik], Relatif à la linguistique | F111: 4154
B112: ABK GRP LIVRE | C112: LIVRE 2/:À la fin de ce _ | D112: Book [bûk] (Relatif au livre) 2/:At the back of the _ | F112: 4155
B113: ABK | C113: loc | D113: locatif | F113: 7287
B114: ABK | C114: m | D114: masculin | F114: 7289
B115: ABK | C115: M-A | D115: Moyen-Âge | F115: 7290
A116: C0011 | B116: ABK REDIR menu, onglet, bouton, barre d'outil, boîte de dialogue, tool (boîte d'outil) et palette | C116: menu, onglet, bouton, barre d'outil, boîte de dialogue, tool (boîte d'outil) et palette | D116: Menu. La syntaxe pour ce mot est "m/Fichier, Ouvrir" où "m/" indique que l'on doit accéder au ">Menu, >Fichier, >Ouvrir" Idem pour onglet: o/, bouton: b/, barre d'outil: bo/, boîte de dialogue: bdi/, tool (boîte d'outil): t/ et palette: p/ | F116: 8461
B117: ABK GRP MINE | C117: MINE | D117: Relatif au monde minéral (appartenant au règne) | F117: 7366
B118: ABK | C118: MM | D118: Messieurs | F118: 7292
B119: ABK | C119: mod | D119: modalité (Vb de) | F119: 7293
B120: ABK | C120: MS | D120: Microsoft | F120: 7373
B121: ABK GRP MSEX | C121: MSEX 2/Outl | D121: MS Exchange SV 2/Outlook | F121: 7428
B122: ABK | C122: n | D122: nom | F122: 7294
B123: ABK | C123: n/ | D123: notre | F123: 7295
B124: ABK | C124: NB - Nombre | D124: Number [nàmbë:r], (Relatif au nombre, chiffre, valeur) numeral ['nïûm(ë)rël] | F124: 4156
A125: C0009 | B125: NON ABK | C125: NON | D125: Ne pas publier cette fiche (p.ex. sur Internet) | F125: 7801
B126: ABK | C126: nt | D126: neutre | F126: 7297
B127: ABK GRP NW | C127: NW (N-NW) | D127: Relatif à Net Ware (Novell NW) | F127: 7385
B128: ABK | C128: NWK | D128: Netzwerk,nt (D-) Network,n (E-) en F- on laisse RS | F128: 7444
B129: ABK | C129: ø | D129: dialecte (_al) | F129: 7348
A130: M9912 | B130: ABK | C130: o/ b/ m/ bo/ bdi/ t/ p/ | D130: onglet /bouton /menu /barre d'outil /boîte de dialogue /tool (boîte d'outil) /palette utilisateur par user onglet_ par o/ menu_ par m/ etc. | F130: 7429
B131: ABK | C131: örtl. | D131: örtlich (=local) | F131: 7298
B132: ABK | C132: P | D132: pluriel | F132: 7299
B133: ABK | C133: p. | D133: page | F133: 7300
B134: ABK | C134: part | D134: particule >>pfx, sfx | F134: 7301
B135: ABK | C135: Password | D135: mot de passe | F135: 7389
B136: ABK | C136: pdt | D136: pendant | F136: 7302
A137: C0407 | B137: ABK | C137: pE- 2/nE- 3//e | D137: prononciation anglaise 2/nouveau en anglais 3/pas besoin d'apprendre, trop rare
B138: ABK | C138: péj | D138: péjoratif | F138: 7303
B139: ABK | C139: pfx | D139: préfixe | F139: 7304
B140: ABK | C140: Pilote (>>Driver) | F140: 1717
B141: ABK | C141: postp | D141: postposition = part@ | F141: 7307
B142: ABK | C142: Pp | D142: participe passé | F142: 7309
B143: ABK | C143: pp | D143: préposition | F143: 7308
B144: ABK | C144: Ppr | D144: participe présent | F144: 7310
B145: ABK | C145: pq | D145: pourquoi | F145: 7311
B146: ABK | C146: Pr | D146: présent | F146: 7313
B147: ABK | C147: pr | D147: pronom | F147: 7312
B148: ABK | C148: prg | D148: programme | F148: 7361
B149: ABK | C149: Print Queue | D149: File d'attente d'impression | F149: 7427
B150: ABK | C150: Programme (>>Prg) | D150: Appli informatique | F150: 1817
B151: ABK | C151: Pt | D151: préterit (passé simple, imparfait) | F151: 7316
B152: ABK | C152: pt | D152: petit,a | F152: 7317
B153: ABK | C153: qc | D153: quelque chose | F153: 7318
B154: ABK | C154: r | D154: réflexif | F154: 7322
B155: ABK | C155: RDV | D155: Rendez-vous
B156: ABK | C156: rel. | D156: relatif | F156: 7324
B157: ABK GRP RS_N-NW | C157: RS_N-NW | D157: Réseau, relatif à Novell NetWare | F157: 7396
B158: ABK GRP RS_N-NW_CST/CO | C158: RS_N-NW_CST/CO | D158: Réseau, relatif à Novell NetWare, Commande de station/console | F158: 7398
B159: ABK GRP RS_N-NW_NET.CFG | C159: RS_N-NW_NET.CFG | D159: Réseau, relatif à Novell NetWare, NET.CFG | F159: 7391
B160: ABK GRP RS_N-NW_OpSTW | C160: RS_N-NW_OpSTW | D160: Réseau, relatif à Novell NetWare, Optimisation STW | F160: 7399
B161: ABK GRP RS_N-NW_VLM | C161: RS_N-NW_VLM | D161: Réseau, relatif à Novell NetWare, VLM | F161: 7397
B162: ABK GRP RS_Sécurité | C162: RS_Sécurité | D162: Relatif à _ et aux pannes | F162: 7401
B163: ABK GRP RS-CEC | C163: RS-CEC | D163: câbles et connecteurs | F163: 7408
B164: ABK GRP RS-Classification | C164: RS-Classification | F164: 7390
B165: ABK GRP RS-DDC | C165: RS-DDC | D165: RS Dispositifs de couplage | F165: 7395
B166: ABK GRP RS-HDW | C166: RS-HDW | D166: Hardware de RS | F166: 7394
B167: ABK GRP RS-NOS | C167: RS-NOS | D167: NOS, Nom d'un fabricant, etc. | F167: 7402
B168: ABK GRP RS-Procédure de cde | C168: RS-Procédure de cde | F168: 7403
B169: ABK GRP RS-PROCOM | C169: RS-PROCOM | F169: 7393
B170: ABK GRP RS-Protocole | C170: RS-Protocole | F170: 7400
B171: ABK RS-Topologie physique | C171: RS-Topologie physique | F171: 8397
B172: ABK | C172: S | D172: singulier | F172: 7325
B173: ABK | C173: s- | D173: sich | F173: 7327
B174: ABK | C174: s.o. | D174: someone (=qn) | F174: 7329
B175: NON ABK | C175: S+ | D175: Seigneur | F175: 7326
B176: NON ABK | C176: SE+ / ES+ | D176: Saint-Esprit / Esprit-Saint | F176: 7330
B177: ABK | C177: sfx | D177: suffixe | F177: 7331
A178: C0011 | B178: NON ABK SGL | C178: SGL | D178: Fait partie du groupe SGL | F178: 7450
B179: ABK | C179: spac | D179: spatial, dans l'espace (=raümlich) | F179: 7332
B180: ABK | C180: sth | D180: something (=qc) | F180: 7333
B181: ABK GRP STW-BD | C181: STW-BD | D181: Relatif à _ base ddé | F181: 7435
B182: ABK GRP STW-OS | C182: STW-OS | D182: Relatif au OS | F182: 7377
B183: ABK | C183: SYN | D183: synonyme | F183: 7334
B184: ABK | C184: t ; tr | D184: transitif | F184: 7335
B185: ABK | C185: t. | D185: tun | F185: 7336
B186: ABK | C186: tdu | D186: trait d'union | F186: 7337
B187: ABK GRP TEL | C187: TEL | D187: Téléphone (déviation, explication, message, présentation) | F187: 7447
B188: ABK | C188: tj | D188: toujours | F188: 7338
B189: ABK | C189: T-R | D189: Token Ring | F189: 7386
B190: ABK | C190: txt | D190: texte | F190: 5532
A191: C1905 | B191: ABK | C191: UA | D191: Unités astronomiques
B192: ABK | C192: US | D192: USA. américain; anglais américain | F192: 2527
B193: ABK | C193: usw | D193: und so weiter (=etc) | F193: 6948
B194: ABK | C194: v ; Vb | D194: verbe | F194: 6951
B195: ABK | C195: v/ | D195: votre | F195: 2624
B196: NON ABK | C196: V0000 (AA,MM) | D196: Vu, Enregistré, Créé, Muté | F196: 2551
B197: ABK | C197: vx | D197: vieux | F197: 6919
B198: NB | C198: W | D198: Watt | F198: 3862
A199: C9912 | B199: ABK | C199: Wd, Xl | D199: Word et Excel de MS | F199: 2395
B200: ABK | C200: WG | D200: Workgroup ou Work Group | F200: 7381
... 4 more rows

Sheet Dico
A1: Date | B1: Groupe | C1: Rub | D1: $$$ | E1: Exemple | F1: N°
B2: D- | C2: :à la rigueur | D2: :zur Not | F2: 1
B3: D- | C3: :à partir d'ici 2/dès maintenant/demain 3/dès l'enfance | D3: :von hier aus 2/von nun/morgen an 3/von klein auf | F3: =F2+1 -> 2
B4: D- PROV | C4: :À qui désirez-vous parler ? 2/:Je désire/souhaiterais parler avec M. X | D4: :Wen möchten Sie sprechen ? 2/:Ich möchte (gern) mit dem Herrn X sprechen (rede,Dial) | F4: =F3+1 -> 3
B5: D- PROV REL | C5: :aimez-vs les uns les autres comme je vs ai aimé | D5: :Ihr sollt einander lieben, so wie ich euch geliebt habe | F5: 4
B6: D- PROV | C6: :Ajouter son grain de sel (Ajouter sa moutarde) | D6: :Seinen Senf dazugeben | F6: 5
B7: D- PROV | C7: :Allons voir! | D7: :Mal sehen! <fam> | F7: 6
B8: D- CORR | C8: :Après diff. comparaisons, notre choix s'est porté sur d'autres produits | D8: :Nach verschiedenen Vergleichen, ist unsere Wahl auf andere Produkte gefallen | F8: 7
B9: DIAL | C9: :as-tu? 2/j'ai un(e) | D9: :hesch? 2/y ha(n) D= | F9: 8
B10: D- PROV | C10: :au (dans le) fond, après tout | D10: :im Grunde (genommen) | F10: 9
B11: D- SALU | C11: :Avec amicales salutations | D11: :Mit freundlichen Grüssen <ohne Punkt> | F11: 10
B12: D- PROV | C12: :Avoir un chat dans la gorge (...une grenouille) | D12: :Einen Frosch im Hals haben | F12: 11
B13: D- | C13: :ça commence à me taper sur les nerfs | D13: :das geht mir langsam auf die Nerven | F13: 12
A14: M0906 | B14: D- PROV | C14: :Ça je ne le sais pas encore 2/:ça ne lui fait rien... | D14: :Das weiss ich noch nicht 2/:Das macht ihm nichts aus, | F14: 13
B15: D- PROV | C15: :ça m'est égal! | D15: :das ist mir egal! | F15: 14
B16: D- | C16: :Ça vs dérange si...? | D16: :Macht es Ihnen etw aus, wenn...? | F16: 15
B17: D- PROV | C17: :Casser du sucre sur le dos de qn (Traîner qn dans le cacao) | D17: :Jdm durch den Kacao ziehen | F17: 16
B18: D- PROV | C18: :Casser les pieds de qn (Tomber sur le réveil de qn) | D18: :Jdm auf den Wecker fallen | F18: 17
B19: D- PROV | C19: :Ce ne sont pas mes oignons (Ce n'est pas ma bière) | D19: :Das ist nicht mein Bier | F19: 18
A20: M0201 | B20: D- PROV | C20: :Cela dépend de vs (C'est votre choix) | D20: :Das hängt von euch/Ihnen ab | F20: 19
A21: M0201 | B21: D- PROV | C21: :cela dépend... (Cela peut être l'un ou l'autre) | D21: :es kommt darauf an | F21: 20
B22: DIAL | C22: :c'est | D22: :das isch D= | F22: 21
B23: D- | C23: :C'est à droite/gauche de la bibliothèque | D23: :Es ist rechts/links vom Büchergestell | F23: 22
B24: D- | C24: :C'est carré, en métal | D24: :Es ist viereckig, aus Metall | F24: 23
B25: D- PROV | C25: :C'est la fin des haricots! | D25: :Das ist (doch) die Höhe! | F25: 24
B26: D- PROV | C26: :C'est une goutte d'eau dans la mer (C'est...eau sur la pierre brulante) | D26: :Das ist ein Tropfen auf den heissen Stein | F26: 25
B27: ABK D- | C27: :c'est-à-dire, cela veut dire | D27: :das heisst (d.h.) | F27: 26
B28: D- | C28: :chacun le sait (pourtant) | D28: :das weiss (doch) jeder | F28: 27
B29: D- CORR | C29: :Ci-joint vs recevez | D29: :In der Beilage erhalten Sie | F29: 28
B30: D- PROV | C30: :Comme on reconnait un arbre à ses fruits | D30: :Wie man einen Baum an seiner Frucht erkennt | F30: 29
B31: D- CORR | C31: :Conditions de livraison 2/:Livraison dans les x j. après réception de la commande | D31: :Lieferungsbedingungen 2/:Lieferung innert X Tagen nach Eingang der Bestellung | F31: 30
B32: D- CORR | C32: :Conditions de paiement 2/:Payable dans les X j avec X% d'escompte | D32: :Zahlungsbedingungen 2/:Zahlbar innert X Tage mit X% Skonto | F32: 31
B33: D- PRINT | C33: :Couleurs; voir 1ère édition | D33: :Farbführung/Andruck: siehe 1. Auflage | F33: 32
B34: D- PROV | C34: :Couper l'herbe sous le pied de qn (Retirer le sol ss les pieds de qn) | D34: :Jdm den Boden unter den Füssen wegziehen | F34: 33
B35: D- | C35: :dans la vie de tt les jours/quotidienne | D35: :im Alltag,m | F35: 34
B36: D- PROV | C36: :de l'un à l'autre | D36: :von einem zu dem andern | F36: 35
A37: C0906 | B37: D- | C37: :de mon point de vue | D37: :auf meine Sicht | F37: 36
B38: D- | C38: :de/en plus, il y a encore un (problème) 2/... d'autres (_s) | D38: :und) dazu, es kommt noch ein (Problem) 2/_en/hat noch weitere (_e) | F38: 37
B39: D- CORR | C39: :Demande d'offre - ... 2/:Merci pour v/demande d'offre | D39: :Einziehen einer Offerte - Wir bitten um eine Offerte für ... gemäss... 2/:Besten Dank für Ihre Offertanfrage | F39: 38
B40: D- CORR | C40: :En réponse à v/demande du | D40: :In Beantwortung Ihrer Anfrage vom | F40: 39
B41: D- SALU | C41: :En vous remerciant et restant... | D41: :Wir danken Ihnen und verbleiben <Idiom> | F41: 40
B42: DIAL | C42: :es-tu? 2/non je suis | D42: :bisch? 2/nai i bi D= | F42: 41
B43: D- PROV | C43: :Être au bout du tunnel (Être de l'autre côté de la montagne) | D43: :Über den Berg sein | F43: 42
B44: D- PROV | C44: :Être dans le pétrin (Être assis dans l'encre) | D44: :In der Tinte sitzen | F44: 43
B45: D- PROV | C45: :Faire d'une pierre deux coups (Taper deux mouches avec une tapette) | D45: :Zwei Fliegen mit einer Klappe schlagen | F45: 44
B46: D- OFFRE | C46: :Faites-ns svp savoir dès que possible la sorte de papier que vs avez retenu | D46: :Bitte teilen Sie uns so rasch wie möglich Ihre gewünschte Papiervariante mit | F46: 45
A47: M0906 | B47: D- PROV | C47: :Garçon! Avez-vous de la truite? Désirez-vs une omelette avec des champigons? Oui je prends cela, et une eau minérale | D47: :Herr Ober! haben Sie Forelle,f ? Möchten Sie Omelette mit Champignons? Ja, das nehme ich, und ein mineral Wasser | F47: 46
B48: D- PROV | C48: :Il ne sait pas d'où il vient et _ il va. Où vas-tu? | D48: :Er weiss nicht, woher er kommt und _hin er geht. Wo gehst du hin? | F48: 47
B49: D- PROV | C49: :Il s'agit de la chose suivante: 2/ns allons donc/alors faire _: | D49: :Es geht um folgendes: 2/wir werden also _ machen: | F49: 48
B50: D- PROV | C50: :Il sait à quoi s'en tenir; il est fixé | D50: :Er weiss Bescheid | F50: 49
B51: D- | C51: :Ils sont sortis/partis (voyager) | D51: :Sie sind rausgegangen/verreist/weggegangen | F51: 50
B52: D- | C52: :J'aime les légumes, mais je n'_ pas les fruits | D52: :Ich habe die Gemüse gern, aber ich _ Obst nicht gern | F52: 51
B53: D- | C53: :je compte sur vs 2/je vs fais confiance | D53: :ich zähle auf euch/Sie / ich rechne mit Ihnen 2/ich verlasse mich auf ... | F53: 52
B54: D- PROV | C54: :je m'y connais! | D54: :ich kenne mich aus! | F54: 53
A55: M0906 | B55: D- PROV | C55: :Je t'/vs assure 2/:Soyez assuré... | D55: :Ich versichere dir/Ihnen 2/:Seien Sie versichert... | F55: 54
B56: DIAL | C56: :je vais 2/ns allons | D56: :ich gang 2/mir geu D= | F56: 55
B57: D- TEL | C57: :Je vs prie de m'excuser, je n'ai pas compris v/nom / le nom de v/entreprise | D57: :Bitte entschuldigen Sie mir, ich habe Ihren Namen/der Name Ihrer Firma nicht verstanden | F57: 56
B58: D- CORR | C58: :Je vs remercie d'avance de v/compréhension | D58: :Im voraus danke ich Ihnen für Ihr Verständnis | F58: 57
B59: D- CORR | C59: :Je vs remercie de votre prompte réponse 2/:Une réponse rapide ns obligerait | D59: :Ich danke für Ihre baldige Antwort 2/:Für rasche Antwort wären wir dankbar | F59: 58
B60: D- CORR | C60: :J'espère / que vs pourrez répondre à mon désir / recevoir une réponse favorable | D60: :Ich hoffe / , dass Sie meinem Wunsch entsprechen können / eine Zusage zu erhalten | F60: 59
B61: D- CORR | C61: :J'espère que vs allez bien | D61: :Ich hoffe, dass es Ihnen gut geht | F61: 60
B62: D- PROV JUR | C62: :La loi du plus fort | D62: :Das Recht des Stärkeren | F62: 61
A63: C1106 | B63: D- | C63: :Les fontaines sur la Place fédérale réjouissent jeunes et vieux tellement que... | D63: :Die Fontänen auf den Bundesplatz beglücken Jung und Alt so sehr, dass... | F63: 62
B64: D- SALU | C64: :Madame, Monsieur 2/:Cher Monsieur X | D64: :Sehr geehrte Damen und Herren 2/:Sehr geehrter Herr X | F64: 63
B65: D- PROV | C65: :Me voilà fixé 2/:je sais à quoi cela tient | D65: :Nun weiss ich (wenigstens), woran ich bin 2/:ich weiss, woran das liegt | F65: 64
B66: D- PROV | C66: :Mener qn en bateau (Attacher un ours sur qn) | D66: :Jdm einen Bären aufbinden | F66: 65
B67: D- PROV | C67: :Mener qn par le bout du nez (Enrouler qn autour du pt doigt) | D67: :Jdm um den kleiner Finger wickeln | F67: 66
B68: D- SALU | C68: :Merci pour v/peine et v/service tj rapide | D68: :Für Ihre Bemühungen und den immer prompten Service besten Dank | F68: =F67+1 -> 67
B69: D- PROV | C69: :Mettre à qn des bâtons dans les roues (Jeter un gourdin entre les jambes de qn) | D69: :Jdm einen Knüppel zwischen die Beine werfen | F69: 68
B70: D- PROV | C70: :Mettre la charrue avant les boeufs (Brider le cheval par la queue) | D70: :Das Pferd beim Schwanz aufzäumen | F70: 69
B71: D- PROV | C71: :Mettre les pieds dans la plat (...dans le pot de graisse) | D71: :Ins Fettnäpfchen treten | F71: 70
B72: D- PROV | C72: :Mettre qn en boîte (Mettre qn sur la pelle) | D72: :Jdm auf die Schippe nehmen | F72: 71
B73: D- PROV | C73: :N'avoir ni queue ni tête (N'avoir ni main ni pied) | D73: :Weder Hand noch Fuss haben | F73: 72
B74: D- PROV | C74: :ni plus ni moins | D74: :nicht mehr und nicht weniger | F74: 73
B75: D- CORR | C75: :N'oubliez pas d'indiquer | D75: :Bitte unbedingt angeben | F75: 74
B76: D- CORR! | C76: :Ns accusons réception de v/lettre et vs remercions de v/intérêt | D76: :Wir bestätigen den Empfang Ihres Briefes und danken für Ihr Interesse | F76: 75
B77: D- CORR | C77: :Ns avons examiné v/contreproposition à fond | D77: :Wir haben Ihren Gegenvorschlag gründlich geprüft | F77: 76
A78: M0002 | B78: D- CORR | C78: :Ns ne pouvons malheureusement vs confier ce mandat car ns n'avons pas reçu confirmation du client | D78: :Leider können wir Ihnen diesen Auftrag nicht erteilen, da wir vom Kunden eine Absage erhalten haben | F78: 77
B79: D- PROV | C79: :Ns voilà quitte | D79: :Nun/Jetzt sind wir quitt | F79: 78
B80: D- PROV | C80: :On doit être prudent face à... (qn) | D80: :Vor diese(n) ... muss mann sich in acht nehmen | F80: 79
B81: D- PROV | C81: :On fait ce qu'on peut! | D81: :Man tut, was man kann! | F81: 80
B82: D- PROV | C82: :On ne fait rien sans rien | D82: :Von nichts kommt nichts | F82: 81
B83: D- PROV | C83: :Où en étais-je resté? | D83: :Wo war ich stehengeblieben? | F83: 82
B84: D- | C84: :Ouvre/Ferme {-le/la fenêtre/la bouche}! | D84: :Mach {es/das Fenster/den Mund} auf/zu! | F84: 83
A85: C1005 | B85: CPT D- | C85: :pas de temps de préchauffage | D85: :keine Vorwärmzeit | F85: 84
B86: D- | C86: :pas décoloré | D86: :keine Bläsen | F86: 85
B87: D- PROV | C87: :Passer de la pommade à qn (Étaler du miel autour de la bouche de qn) | D87: :Jdm Honig um den Mund schmieren | F87: 86
B88: D- PROV | C88: :Passer un savon à qn (Laver la tête à qn) | D88: :Jdm den Kopf waschen | F88: 87
B89: D- | C89: :Peut-on se parquer ici? Non, on ne peut pas se parquer ici | D89: :Darf man hier parken? Nein, hier darf man nicht parken | F89: 88
B90: D- CORR | C90: :Pour vs être agréable / ns acceptons exceptionnellement v/proposition | D90: :Um Ihnen entgegenzukommen / wir nehmen aushahmsweise Ihren Vorschlag an | F90: 89
A91: C1806 | B91: D | C91: :Préparez-vous à | D91: :Bereiten Sie sich auf | F91: 90
B92: D- PROV | C92: :Puis-je encore / (continer de) parler? | D92: :Kann ich noch / (weiter) machen / fort fahren? | F92: 91
B93: D- | C93: :Puis-je vs demander qc? Quoi donc? | D93: :Darf ich Sie etw fragen? Was denn? | F93: 92
B94: D- CORR | C94: :Qd seront-ils livrés? | D94: :Wann werden sie geliefert? | F94: 93
B95: D- PROV | C95: :Qu'aurais-je donc pu faire d'autre (, sinon)? | D95: :Was hätte ich (sonst) auch tun sollen? | F95: 94
B96: D- TEL | C96: :Quel est v/nom? Pouvez-vs me rappeler v/nom? | D96: :Wie ist ihr Name? Können Sie mir Ihren Namen wiederholen? | F96: 95
A97: C0906 | B97: D- | C97: :Quelle heure est-il (maintenant)? | D97: :Wie spät ist es jetzt? | F97: 96
B98: D- | C98: :Qu'est-ce que/Quel genre de...? | D98: :Was für ein(e,r) (P: welche)...? | F98: 97
B99: D- | C99: :Qu'est-ce qu'il y a sur la table? | D99: :Was {liegt/steht/ist/hat es} auf dem Tisch? | F99: 98
B100: D- CORR | C100: :qui a retenu (toute) n/attention | D100: :der unsere (ganze) Aufmerksamkeit auf s- gezogen hat | F100: 99
B101: D- PROV | C101: :Retourner sa veste (Tourner son fanion selon le vent) | D101: :Sein Fähnchen nach dem Wind drehen | F101: 100
B102: D- PROV | C102: :Rouler sur l'or (Nager dans l'argent) | D102: :Im Geld schwimmen | F102: 101
B103: D- | C103: :sans mais et sans si | D103: :ohne Wenn und Aber | F103: 102
B104: D- | C104: :Santé! | D104: :Zum Wohl! Prost! <interj> | F104: 103
B105: D- PROV | C105: :Se jeter dans la gueule du loup (Se rendre dans l'antre du lion) | D105: :S- in die Höhle des Löwen begeben | F105: 104
B106: D- PROV | C106: :Sonner les cloches à qn (Monter sur le toit de qn) | D106: :Jdm auf Dachs steigen | F106: 105
B107: D- OFFRE | C107: :SVP faites-nous connaître jusqu'au 16.10 après-midi votre meilleure offre pour: | D107: :Bitte teilen Sie uns bis 16.10 nachmittags Ihr bestes Angebot mit: | F107: 106
B108: D- PROV | C108: :Tourner autour du pot (Tourner comme le chat autour de la pâtée brûlante) | D108: :Wie die Katze um den heissen Brei gehen | F108: 107
B109: D- PROV | C109: :Tu dois me raconter cela | D109: :Das musst du mir erzählen | F109: 108
A110: C0906 | B110: D- PHOTO | C110: :Un appareil de photo noir-blanc ou couleur? | D110: :Eine schwarz-weiss oder farbe Kamera,f ? | F110: 109
B111: D- PROV | C111: :Un argument parmi bcp qui parle pour ns | D111: :Eines von vielen Argumenten, das für uns spricht | F111: 110
B112: D- PROV | C112: :un bon week-end | D112: :ein schönes Wochenende | F112: 111
B113: D- PROV | C113: :Une fois pour toutes | D113: :Ein für allemal | F113: 112
B114: D- CORR | C114: :Veuillez envoyer rapidement | D114: :Wir bitten um sofortige Lieferung | F114: 113
B115: D- CORR | C115: :Veuillez livrer aux conditions habituelles / franco gare du destinataire | D115: :Bitte liefern Sie zu den üblichen Bedingungen / franko Bahnhof des Empfängers | F115: 114
B116: D- CORR | C116: :Veuillez me soumettre une offre détaillée | D116: :Unterbreiten Sir mir bitte ein ausführliches Angebot | F116: 115
B117: D- CORR | C117: :Veuillez ns faire savoir à quel prix 2/:À quel prix /minimum/ pourriez-vs ns livrer? | D117: :Teilen Sie uns bitte mit, zu welchem Preis 2/:Zu welchem (äussersten /od/äusserst berechneten) Preis könnten Sie uns ... liefern? | F117: 116
B118: D- CORR | C118: :Veuillez svp nous soumettre une offre pour: | D118: :Bitte unterbreiten Sie uns ein Angebot für: | F118: 117
B119: D- LING | C119: :Vient ici! 2/:Va là(-bas)! | D119: :Komm (mal) her! 2/:Geh (mal) hin! | F119: 118
B120: D- | C120: :Voilà une règle, une gomme, une boîte | D120: :Da ist ein Lineal, ein Radiergummi, eine Schachtel | F120: 119
A121: C0906 | B121: D- | C121: :Votre prochain rendez-vous. Les _ non décommandés 24h à l'avance seront facturés | D121: :Ihr nächster Termin. _, die nicht 24 Std. vorher abgesagt werden, werden in Rechnung gestellt | F121: 120
B122: D- PROV REL | C122: :vouloir et faire (accomplir, achever) | D122: :Wollen,nt und Vollbringen | F122: 121
B123: D- PROV | C123: :Y a-t-il qn? | D123: :Ist hier jemand? | F123: 122
B124: D- LING @ particule combinée avec Vb | C124: <mouvement de rapprochement p/rapp. à celui qui parle> | D124: her_ <_r dans la langue courante> | F124: 123
B125: D- LING @ particule combinée avec Vb | C125: <mouvement d'éloignement p/rapp. à celui qui parle> | D125: hin_ <_r dans la langue courante> | F125: 124
B126: D- PART | C126: <sens: en avant, de nouveau> | D126: fort-,pfxVb (ETYM: ±vorwärts, weiter) | F126: 125
B127: D- PART | C127: <sens: face à soi; GB: on> | D127: an-,pfxVb | F127: 126
B128: D- MÉTÉO | C128: 1précipitations 2/dépression 3/couvert 4/chutes de neige 5/orage | D128: 1Niederschläge,fP Regen,m 2/Niedderung,f 3/bedeckt,a 4/Schneefälle,mP 5/Gewitter,nt | F128: 127
B129: D- | C129: A | D129: A | F129: 128
B130: D- SPAC | C130: à (au), sur, par, en, au bord <Où, Pour où, Qd?> | D130: an,pp+AD <räuml., zeitl., kausal> 2/,@ | F130: 129
B131: D- | C131: à (l'occasion de) quoi 2/:il était triste de ne pas avoir de but | D131: wobei,@ (obwohl) <fragend a indirekt> 2/:er war traurig, _ er keinen Grund hatte | E131: LETZT. wobei. er war traurig, wobei er keinen Grund hatte. | F131: 130
B132: DIAL | C132: à <lieu> {Berne/pied} | D132: z {Bern/Fuess} D=zu | F132: =F131+1 -> 131
B133: D- | C133: à bord | D133: an Bord | F133: 132
B134: D- | C134: à cause de,pp+G en raison, pour, par la suite de, eu égards à 2/_ cela | D134: wegen,pp+G 2/_ dem | F134: 133
B135: D- | C135: à cela, de cela 2/:Pensez _ | D135: daran,@ 2/:Denkt _ | F135: 134
B136: D- | C136: à côté, avec, compris, en même temps 2/:j'en suis, je suis de la partie | D136: dabei,@ (mit etw zusammen) 2/:ich bin _ | E136: LETZT. dabei. ich bin dabei. | F136: 135
B137: D- SPAC | C137: à côté,pp | D137: neben,pp+AD | F137: 136
B138: D- TECH | C138: à la machine | D138: maschinell,a | F138: 137
B139: D- | C139: à la main | D139: von Hand | F139: 138
B140: D- | C140: à la vérité, en effet, il est vrai 2/à savoir | D140: zwar,@ (±allerdings) 2/und _ (±nämlich) | F140: 139
B141: D- | C141: à moins que,cjs 2/sauf que,cjs | D141: ausser wenn,cjs 2/ausser, dass,cjs | F141: 140
B142: D- | C142: à partir (Qd?) 2/de (D'où?) 3/(départ à) | D142: ab,@ 2/_ <pp s/art> 3/_ <locution> | F142: 141
B143: D- | C143: à partir, depuis, dès <sens spac, temps, qté> | D143: ab,pp <+n+D(A) oft ohne Artikel> (von ... an/aus/auf) | F143: 142
B144: D- | C144: à peine,@ presque pas | D144: kaum,@ | F144: 143
B145: D- | C145: à propos | D145: Apropos, bei dieser/passender Gelegenheit | F145: 144
B146: D- | C146: à qui,pr+D 2/avec eux | D146: denen,pr+D 2/mit _ | F146: 145
B147: D- | C147: à quoi (bon)?, pq, pour quelle raison 2/à la(au)quel | D147: wozu,pr@+D <interr ind.> 2/<relativ: zu dem,der> | F147: 146
B148: D- | C148: à quoi, sur lequel? 2/auquel | D148: woran,pr@+AD <interr ind.> 2/<relativ: an dem, der> | F148: 147
B149: DIAL | C149: à travers | D149: queer / dure D= | F149: 148
B150: D- NB | C150: à travers, par 2/divisé (/:÷ par) | D150: durch,pp+A 2/_ (geteilt _) | F150: 149
B151: D- | C151: à) savoir, car, c'est-à-dire, c'est que <introduit une explication> | D151: nämlich,@ <fct cjs> | F151: 150
B152: D- | C152: a)baisser, descendre, échouer 2/s'asseoir, prendre place, se poser (oiseau) | D152: niederLassen,t (herunterlassen) 2/s-,r (s- setzen) | F152: 151
B153: D- | C153: à, au, dans <qd on entre dans un bâtiment> 2/dans | D153: in,pp+A (loc) in das:ins 2/im,pp+D (dir) f:in der | F153: 152
B154: D- | C154: à, en,pp / après,pp 2/après que, lorsque,cjs | D154: nach,pp+D 2/_dem,cjs | F154: 153
B155: DIAL | C155: à,<art défini f> {sa mère} | D155: der {mueter} D= | F155: 154
B156: D- | C156: à,pp chez (Pour où?) 2/pour (Quand?) 3/en outre | D156: zu,pp+D (Wohin?) m:zum nt:zum f:zur 3/_dem | F156: 155
B157: DIAL | C157: à; sur; pour; en; de | D157: uf D=auf | F157: 156
B158: D- | C158: abattre, précipiter (qc) | D158: fällen,t+A (fällt _te h gefällt) | F158: 157
B159: D- | C159: abattu 2/décourager | D159: entmutig,a 2/_en,t+A | F159: 158
B160: D- | C160: abréviation | D160: Abkürzung(en),f (ABK) | F160: 159
A161: C0906 | B161: D- | C161: absence,f | D161: Abwesenheit,f | F161: 160
B162: D- | C162: absolu(ment),a&@ | D162: unbedingt,a&@ | F162: 161
A163: C0201 | B163: D- | C163: acarien,m | D163: Milbe,f | F163: 162
A164: C0205 | B164: D- | C164: accélérer,t | D164: beschleunigen,t | F164: 163
B165: D- TYPO | C165: accent aigu, circonflexe, grave | D165: Akzent,m akut,a Zirkumflex,m Gravis,m | F165: 164
B166: D- LING | C166: accentuer 2/accent, inflexion | D166: betonen,t 2/_ung,f | F166: 165
A167: M1109 M2010 | B167: D- | C167: acceptable 2/in_ | D167: akzeptabel,a (annehmbar) 2/in_,a | F167: 166
B168: D- | C168: acceptation, promesse 2/promettre, accepter | D168: Zusage,f 2/_n,t&i | F168: 167
A169: M0906 | B169: D- | C169: accepter (risque, respons., personne) / supposer 2:/se sentir _é | D169: anNehmen,t%+A (akzeptieren) (nahm h angenommen) 2/:sich angenommen fühlen | F169: 168
B170: D- | C170: accès 2/_sible | D170: Zugang,m 2/_lich,a | F170: 169
B171: CPT D- | C171: accès séquentiel | D171: segmentierer Zugriff,m | F171: 170
B172: D- SPORT | C172: accomplir (faire) 2/se permettre, avoir les moyens financiers 3/performance, rendement | D172: leisten,t+A 2/s-_,r (etw) 3/_ung,f | F172: 171
B173: D- COMM | C173: accord, convention 2/_ commercial | D173: Abkommen,nt 2/Handels_,nt | F173: 172
B174: DIAL | C174: accordé | D174: abg!schtimmt <idem on saute le 'e'> D=abgestimmt | F174: 173
B175: D- | C175: accorder (voix, instrument) 2/être correct/vrai 3/accord; humeur, état d'âme 4/scrutin, plébicite, référendum; accord(age), harmonisation | D175: stimmen,t 2/,i 3/_ung,f 4/(Volks)Ab_ung,f | F175: 174
B176: D- COMM NB | C176: accroissement, développement, augmentation, mise aux enchères 2/«montée», raidillon, grimpette | D176: Steigerung,f 2/Steig,m | F176: 175
B177: DIAL | C177: acheter 2/_é 3/achats | D177: chauffe 2/gchaut 3/ii_ D=kaufen 2/gekauft 3/Einkaüfe,fP | F177: 176
B178: D- COMM NB | C178: acompte (d'un paiement) 2/mensualité 3/:Par _ | D178: Rate,f (Abschlags\zahlung, An-, Voraus-) 2/Monats_ 3/:Auf _n | F178: 177
B179: D- | C179: actif,a 2/activité, fonctionnement | D179: tätig,a 2/Tätigkeit,f | F179: 178
B180: D- | C180: action, acte 2/faits, réalité 3/:c'est un _ que/le _ est que 4/:les _ parlent d'eux-mêmes | D180: Tat(en),f 2/_sachen,fP 3/:T_sache ist, dass 4/:die _sachen sprechen deutlich genug | F180: 179
B181: D- | C181: action, enjeu, mise (en jeu) / chassis, empiècement 2/disponible(-ilité), prêt à l'action | D181: Einsatz,m 2/_bereit,a(-schaft,f) | F181: 180
B182: D- | C182: actuel | D182: aktuell,a | F182: 181
B183: DIAL | C183: adieu | D183: adie D=Auf Wiedersehen | F183: 182
B184: D- | C184: administrer, gérer (gouverner) 2/_ateur, _ant, intendant 3/_ation, _ance, régie, gestion | D184: verwalten,t 2/_r,m 3/_ung,f | F184: 183
B185: D- REL | C185: admirer 2/_ation 3/_ateur 4/_able | D185: bewundern,t+A 2/_ung,f 3/_er,m 4/_swert,a | F185: 184
B186: D- REL | C186: adorer 2/_ateur 3/_ation | D186: anBeten,t 2/_er,m 3/_ung,f | F186: 185
B187: DIAL | C187: affaire 2/une bonne _ | D187: gschäft,nt 2/es guets _ D=Geschäft,nt | F187: 186
B188: D- COMM | C188: affaire, magasin 2/d'_s, commercial 3/pour _ | D188: Geschäft,nt 2/_lich,a 3/_lich,@ | F188: 187
A189: C0201 | B189: D- | C189: affaire,f cas,m | D189: Angelegenheit,f | F189: 188
B190: D- | C190: affecter à 2/affectation | D190: zuweisen,t 2/_ung,f | F190: 189
B191: D- | C191: affermir, consolider, renforcer 2/attacher, fixer, stabiliser 3/consistance, fermeté, solidité | D191: festigen,t+A/r (fest machen, fest werden lassen) 2/be_ 3/Festigkeit,f | F191: 190
B192: D- | C192: affiche | D192: Plakat,nt (Anschlagzettel,m Stellwand,f) | F192: 191
A193: C0011 | B193: D- | C193: affiner,t | D193: verfeinern | E193: LETZT. Möchten Sie Ihre Suche verfeinern? | F193: 192
B194: ANIM D- REL | C194: agneau 2/viande d'_ | D194: Lamm("er),nt 2/_fleisch,nt | F194: 193
B195: D- RELIU | C195: agrapheuse (_-piqueuse) | D195: Sammelhefter,m | F195: 194
B196: DIAL | C196: agréable 2/confortable | D196: aagnääm 2/gmüetli(ch) D= | F196: =F195+1 -> 195
B197: D- | C197: agréable, confortable, tranquille | D197: gemütlich,a (bequem) | F197: 196
B198: ANIM D- PROF VÉGÉ | C198: agriculteur 2/_ure | D198: Landwirt,m 2/_schaft,f | F198: 197
A199: C0506 | B199: D- | C199: ah! | D199: aha <oder> ah | F199: 198
B200: D- COMM | C200: aide-mémoire | D200: Aktennotiz,f (=Aktenvermerk,m) | F200: 199
... 1381 more rows
